fUSD/lending_fUSD_20251225
["ID","MTS","AMOUNT","RATE_DAILY","PERIOD"]
[399787180,1766676651070,-150.0,0.0001679,2]
[399787181,1766676651080,-150.0,0.00016793,2]
[399787182,1766676651090,-159.81844232,0.00016798,2]
[399787183,1766676651100,-399.59949094,0.00016798,2]
[399787184,1766676651110,-192.8242755,0.00016798,2]
[399787185,1766676651121,-206.63382846,0.00016798,2]
[399787186,1766676651132,-150.0,0.00016814,2]
[399787187,1766676651147,-159.81844232,0.00016815,2]
[399787188,1766676651158,-399.59949094,0.00016815,2]
[399787189,1766676651171,-192.8242755,0.00016815,2]
[399787190,1766676651182,-206.63382846,0.00016815,2]
[399787191,1766676651203,-150.0,0.00016816,2]
[399787192,1766676651216,-617.40005154,0.0001682,2]
[399787193,1766676651226,-150.0,0.00016823,2]
[399787194,1766676651238,-159.81844232,0.00016832,2]
[399787195,1766676651248,-399.59949094,0.00016832,2]
[399787196,1766676651258,-192.8242755,0.00016832,2]
[399787197,1766676651269,-206.63382846,0.00016832,2]
[399787198,1766676651279,-150.0,0.00016836,2]
[399787199,1766676651289,-150.0,0.00016836,2]
[399787200,1766676651299,-150.0,0.00016845,2]
[399787201,1766676651310,-159.81844232,0.00016849,2]
[399787202,1766676651320,-399.59949094,0.00016849,2]
[399787203,1766676651330,-192.8242755,0.00016849,2]
[399787204,1766676651340,-206.63382846,0.00016849,2]
[399787205,1766676651349,-150.0,0.00016856,2]
[399787206,1766676651359,-150.0,0.00016856,2]
[399787207,1766676651369,-150.0,0.00016857,2]
[399787208,1766676651378,-150.0,0.00016859,2]
[399787209,1766676651387,-200.0,0.00016863,2]
[399787210,1766676651398,-200.0,0.00016864,2]
[399787211,1766676651408,-200.0,0.00016864,2]
[399787212,1766676651418,-159.81844232,0.00016866,2]
[399787213,1766676651429,-399.59949094,0.00016866,2]
[399787214,1766676651439,-192.8242755,0.00016866,2]
[399787215,1766676651449,-206.63382846,0.00016866,2]
[399787216,1766676651460,-25000.0,0.00016874,3]
[399787217,1766676651473,-150.0,0.00016879,2]
[399787218,1766676651485,-25000.0,0.00016882,3]
[399787219,1766676651499,-159.81844232,0.00016883,2]
[399787220,1766676651514,-399.59949094,0.00016883,2]
[399787221,1766676651527,-192.8242755,0.00016883,2]
[399787222,1766676651541,-206.63382846,0.00016883,2]
[399787223,1766676651553,-150.0,0.00016886,2]
[399787224,1766676651564,-150.0,0.00016888,2]
[399787225,1766676651575,-25000.0,0.00016891,3]
[399787226,1766676651587,-500.0,0.00016899,2]
[399787227,1766676651599,-10000.0,0.000169,2]
[399787228,1766676651611,-25000.0,0.000169,3]
[399787229,1766676651624,-214.20136534,0.000169,2]
[399787230,1766676651637,-1926.43051864,0.000169,3]
[399787231,1766676651649,-156.81485744,0.000169,2]
[399787232,1766676651663,-789.11969302,0.000169,2]
[399787233,1766676651676,-536.97429164,0.000169,2]
[399787234,1766676651689,-150.0,0.000169,2]
[399787235,1766676651702,-159.81844232,0.00016901,2]
[399787236,1766676651715,-399.59949094,0.00016901,2]
[399787237,1766676651728,-192.8242755,0.00016901,2]
[399787238,1766676651740,-206.63382846,0.00016901,2]
[399787239,1766676651752,-150.0,0.00016901,2]
[399787240,1766676651764,-30000.0,0.00016912,2]
[399787241,1766676651777,-159.81844232,0.00016918,2]
[399787242,1766676651788,-399.59949094,0.00016918,2]
[399787243,1766676651799,-192.8242755,0.00016918,2]
[399787244,1766676651810,-206.63382846,0.00016918,2]
[399787245,1766676651822,-150.0,0.00016921,2]
[399787246,1766676651835,-150.0,0.00016921,2]
[399787247,1766676651847,-150.0,0.00016922,2]
[399787248,1766676651860,-159.81844232,0.00016935,2]
[399787249,1766676651873,-399.59949094,0.00016935,2]
[399787250,1766676651886,-192.8242755,0.00016935,2]
[399787251,1766676651899,-206.63382846,0.00016935,2]
[399787252,1766676651912,-188.55950753,0.00016935,2]
[399787253,1766676651923,-150.0,0.00016936,2]
[399787254,1766676651936,-150.0,0.00016943,2]
[399787255,1766676651948,-150.0,0.00016944,2]
[399787256,1766676651960,-244.0,0.00016946,2]
[399787257,1766676651972,-159.81844232,0.00016952,2]
[399787258,1766676651984,-399.59949094,0.00016952,2]
[399787259,1766676651998,-192.8242755,0.00016952,2]
[399787260,1766676652011,-206.63382846,0.00016952,2]
[399787261,1766676652024,-150.0,0.00016954,2]
[399787262,1766676652037,-150.0,0.00016965,2]
[399787263,1766676652048,-159.81844232,0.00016969,2]
[399787264,1766676652061,-399.59949094,0.00016969,2]
[399787265,1766676652075,-192.8242755,0.00016969,2]
[399787266,1766676652088,-206.63382846,0.00016969,2]
[399787267,1766676652099,-500.0,0.0001697,2]
[399787268,1766676652112,-500.0,0.0001697,2]
[399787269,1766676652125,-500.0,0.0001697,2]
[399787270,1766676652137,-800.78551976,0.0001697,2]
[399787271,1766676652149,-500.0,0.00016973,2]
[399787272,1766676652161,-150.0,0.00016973,2]
[399787273,1766676652176,-159.81844232,0.00016986,2]
[399787274,1766676652188,-190.41715558,0.00016986,2]
[399787275,1766676652199,-217.62219692,0.00016986,2]
[399787276,1766676652213,-399.59949094,0.00016986,2]
[399787277,1766676652226,-192.8242755,0.00016986,2]
[399787278,1766676652239,-171.10828189,0.00016986,2]
[399787279,1766676652253,-250.03401256,0.00016986,2]
[399787280,1766676652266,-206.63382846,0.00016986,2]
[399787281,1766676652280,-195.8030936,0.00016986,2]
[399787282,1766676652293,-199.77046781,0.00016986,2]
[399787283,1766676652305,-270.36367616,0.00016986,2]
[399787284,1766676652317,-176.41435158,0.00016986,2]
[399787285,1766676652328,-201.03741992,0.00016986,2]
[399787286,1766676652340,-245.69368063,0.00016986,2]
[399787287,1766676652352,-335.0,0.00016989,2]
[399787288,1766676652363,-150.0,0.0001699,2]
[399787289,1766676652374,-690.4064603,0.0001699,2]
[399787290,1766676652384,-690.4064603,0.0001699,2]
[399787291,1766676652396,-500.0,0.00016998,2]
[399787292,1766676652407,-500.0,0.00016998,2]
[399787293,1766676652419,-500.0,0.00016998,2]
[399787294,1766676652430,-1060.87558749,0.00016999,5]
[399787295,1766676652443,-6090.3724433,0.00016999,2]
[399787296,1766676652457,-13200.2550316,0.00016999,2]
[399787297,1766676652470,-300.0,0.00016999,2]
[399787298,1766676652483,-27703.4777281,0.00016999,2]
[399787299,1766676652494,-622.31367143,0.00016999,2]
[399787300,1766676652505,-8419.0621034,0.00016999,2]
[399787301,1766676652516,-300.0,0.00016999,2]
[399787302,1766676652526,-514.26394542,0.00016999,2]
[399787303,1766676652536,-500.0,0.00016999,2]
[399787304,1766676652551,-399.26186122,0.00016999,2]
[399787305,1766676652563,-12209.6045941,0.00016999,2]
[399787306,1766676652575,-300.0,0.00016999,2]
[399787307,1766676652588,-666.0,0.00016999,2]
[399787308,1766676652600,-4725779.49341158,0.00017,2]
[399787309,1766676652976,-443.4506406,0.00014051,2]
[399787310,1766676652990,-1056.5493594,0.00014051,2]
[399787311,1766676653001,-39386.44018113,0.00017,2]
[399787312,1766676653015,-3046.17745822,0.00017,2]
[399787313,1766676653038,-1263.37847576,0.00017,2]
[399787314,1766676653052,-411.05018221,0.00017,2]
[399787315,1766676653080,-603.2142,0.00017,2]
[399787316,1766676653094,-305882.83692086,0.00017,2]
[399787317,1766676653356,-373.49586585,0.00013232,2]
[399787318,1766676653369,-416.30793719,0.00013232,2]
[399787319,1766676653383,-4169.902902,0.00013232,2]
[399787320,1766676653402,-297.68314574,0.00013232,2]
[399787321,1766676653416,-343.53915486,0.00013232,2]
[399787322,1766676653429,-69.28215795,0.00013232,2]
[399787323,1766676653442,-2778.75830567,0.00017,2]
[399787324,1766676653538,-770916.14474511,0.00017,2]
[399787325,1766676653554,-240046.42664876,0.00017,2]
[399787326,1766676653571,-2610.0,0.00017,2]
[399787327,1766676787994,500.0,0.000119,2]
[399787328,1766676796508,502.34827947,0.000119,2]
[399787329,1766676800978,500.0,0.000119,2]
[399787330,1766676802666,500.21797573,0.000119,2]
[399787331,1766676802798,333.88776573,0.000119,2]
[399787332,1766676808583,500.0,0.000119,2]
[399787333,1766676871473,600.0,0.00032876,120]
[399787334,1766676873250,600.0,0.00032876,120]
[399787335,1766676875223,600.0,0.00032876,120]
[399787336,1766676877634,600.0,0.00032876,120]
[399787337,1766676879742,600.0,0.00032876,120]
[399787338,1766676881824,600.0,0.00032876,120]
[399787339,1766676905647,500.0,0.000119,2]
[399787347,1766677027427,500.0,0.000119,2]
[399787348,1766677143911,500.0,0.000119,2]
[399787354,1766677267385,200.0,0.00032876,120]
[399787358,1766677551035,165.81,6.323e-05,2]
[399787359,1766677623390,500.0,0.000119,2]
[399787365,1766677832166,-1852.42,0.00012562,2]
[399787367,1766677832179,-150.0,0.00012579,2]
[399787369,1766677832191,-250.0,0.00012629,2]
[399787370,1766677832203,-1340.62,0.00012679,2]
[399787371,1766677832215,-7416.31321449,0.00012684,2]
[399787372,1766677832226,-1200.0,0.00012765,2]
[399787373,1766677832238,-300.0,0.00012765,2]
[399787374,1766677832250,-300.0,0.00012765,2]
[399787375,1766677832261,-50775.70296944,0.00012766,2]
[399787376,1766677832275,-2424.42970357,0.00012766,2]
[399787377,1766677832295,-834.46466102,0.00012766,2]
[399787378,1766677832309,-1994.98025486,0.00012766,2]
[399787379,1766677832326,-1435.76059208,0.00012766,2]
[399787380,1766677832339,-871.98025582,0.00012766,2]
[399787381,1766677832353,-824.45059083,0.00012766,2]
[399787382,1766677832367,-7631.69981,0.00012766,2]
[399787383,1766677832381,-471.84604647,0.00012766,2]
[399787384,1766677832395,-1100.0,0.00012766,2]
[399787385,1766677832408,-413.55879027,0.00012766,2]
[399787386,1766677832422,-948.3053255,0.00012766,2]
[399787387,1766677832435,-4498.31984365,0.00012766,2]
[399787388,1766677832449,-2949.99999998,0.00012766,2]
[399787389,1766677832463,-524.45373049,0.00012766,2]
[399787390,1766677832476,-4544.70443836,0.00012766,2]
[399787391,1766677832489,-368.48262326,0.00012766,2]
[399787392,1766677832502,-3444.2674592,0.00012766,2]
[399787400,1766677838617,-303.92177082,0.00012765,2]
[399787401,1766677838628,-146677.13078352,0.00012766,2]
[399787402,1766677838641,-251.80538329,0.00012766,2]
[399787504,1766677840407,-767013.65673839,0.00012766,2]
[399787505,1766677840419,-252.52624561,0.00012784,2]
[399787506,1766677840430,-150.0,0.00012864,2]
[399787507,1766677840441,-300.0,0.00012864,2]
[399787508,1766677840452,-846.7,0.00012865,2]
[399787509,1766677840462,-28320.05,0.00012866,2]
[399787510,1766677840473,-215.57,0.00012935,2]
[399787511,1766677840485,-346.607,0.00012967,2]
[399787512,1766677840495,-5314.293,0.00012967,2]
[399787513,1766677840505,-2500.0,0.00013132,2]
[399787514,1766677840517,-10610.1024253,0.00013133,2]
[399787515,1766677840527,-214.20136537,0.00013133,2]
[399787516,1766677840538,-846.7,0.00013139,2]
[399787517,1766677840548,-7416.31321443,0.00013152,2]
[399787518,1766677840560,-151.0,0.00013224,2]
[399787519,1766677840570,-151.0,0.00013224,2]
[399787520,1766677840581,-151.0,0.00013224,2]
[399787521,1766677840592,-151.0,0.00013224,2]
[399787522,1766677840602,-151.0,0.00013224,2]
[399787523,1766677840614,-500.0,0.00013224,2]
[399787524,1766677840625,-151.0,0.00013224,2]
[399787525,1766677840635,-500.0,0.00013224,2]
[399787526,1766677840646,-151.0,0.00013224,2]
[399787527,1766677840656,-500.0,0.00013224,2]
[399787528,1766677840667,-151.0,0.00013224,2]
[399787529,1766677840682,-500.0,0.00013224,2]
[399787530,1766677840698,-207.4,0.00013224,2]
[399787531,1766677840709,-500.0,0.00013224,2]
[399787532,1766677840720,-151.0,0.00013224,2]
[399787533,1766677840731,-500.0,0.00013224,2]
[399787534,1766677840747,-151.0,0.00013224,2]
[399787535,1766677840759,-500.0,0.00013224,2]
[399787536,1766677840770,-151.0,0.00013224,2]
[399787537,1766677840781,-500.0,0.00013224,2]
[399787538,1766677840791,-626.72929824,0.00013224,2]
[399787539,1766677840801,-200.0,0.00013224,2]
[399787540,1766677840812,-500.0,0.00013224,2]
[399787541,1766677840823,-500.0,0.00013224,2]
[399787542,1766677840833,-500.0,0.00013224,2]
[399787543,1766677840843,-615.40475298,0.00013224,2]
[399787544,1766677840853,-200.0,0.00013224,2]
[399787545,1766677840864,-500.0,0.00013229,2]
[399787546,1766677840875,-7415.5494,0.00013333,2]
[399787547,1766677840888,-1000.0,0.00013333,2]
[399787548,1766677840898,-846.7,0.00013413,2]
[399787549,1766677840909,-441.70606198,0.00013503,2]
[399787550,1766677840919,-10610.10242524,0.00013552,2]
[399787551,1766677840931,-7416.31321443,0.00013621,2]
[399787552,1766677840942,-846.7,0.00013687,2]
[399787553,1766677840952,-500.0,0.00013698,2]
[399787554,1766677840964,-500.0,0.00013698,2]
[399787555,1766677840974,-500.0,0.00013698,2]
[399787556,1766677840984,-500.0,0.00013698,2]
[399787557,1766677840994,-500.0,0.00013698,2]
[399787558,1766677841004,-500.0,0.00013698,2]
[399787559,1766677841014,-500.0,0.00013698,2]
[399787560,1766677841024,-500.0,0.00013698,2]
[399787561,1766677841034,-500.0,0.00013698,2]
[399787562,1766677841045,-500.0,0.00013698,2]
[399787563,1766677841057,-500.0,0.00013698,2]
[399787564,1766677841068,-500.0,0.00013698,2]
[399787565,1766677841079,-500.0,0.00013698,2]
[399787566,1766677841090,-500.0,0.00013698,2]
[399787568,1766677841100,-500.0,0.00013698,2]
[399787570,1766677841115,-500.0,0.00013698,2]
[399787571,1766677841126,-500.0,0.00013698,2]
[399787572,1766677841137,-500.0,0.00013698,2]
[399787573,1766677841148,-500.0,0.00013698,2]
[399787574,1766677841159,-500.0,0.00013698,2]
[399787575,1766677841169,-500.0,0.00013698,2]
[399787577,1766677841180,-507.55739974,0.00013698,2]
[399787579,1766677841191,-500.0,0.00013698,2]
[399787580,1766677841201,-500.0,0.00013698,2]
[399787581,1766677841212,-500.0,0.00013698,2]
[399787582,1766677841222,-500.0,0.00013698,2]
[399787583,1766677841232,-500.0,0.00013698,2]
[399787584,1766677841242,-500.0,0.00013698,2]
[399787585,1766677841253,-500.0,0.00013698,2]
[399787586,1766677841265,-500.0,0.00013698,2]
[399787587,1766677841275,-1000.0,0.00013699,2]
[399787588,1766677841287,-515.36,0.00013699,2]
[399787589,1766677841298,-523.19771623,0.00013699,2]
[399787590,1766677841309,-332.94400124,0.00013699,2]
[399787591,1766677841320,-9999.99,0.00013699,2]
[399787592,1766677841332,-150.99,0.00013699,2]
[399787593,1766677841342,-12451.27,0.00013699,2]
[399787594,1766677841355,-299.99,0.00013699,2]
[399787595,1766677841366,-3807.71,0.00013699,2]
[399787596,1766677841377,-733.92,0.00013699,2]
[399787597,1766677841388,-150.99,0.00013699,2]
[399787598,1766677841400,-9999.99,0.00013699,2]
[399787599,1766677841412,-9999.99,0.00013699,2]
[399787600,1766677841423,-214.20136534,0.00013761,2]
[399787601,1766677841434,-195.0,0.00013818,2]
[399787602,1766677841444,-195.0,0.00013818,2]
[399787603,1766677841456,-1142.56862705,0.00013827,2]
[399787604,1766677841472,-195.0,0.00013837,2]
[399787605,1766677841483,-300.0,0.00013837,2]
[399787606,1766677841495,-250.0,0.00013837,2]
[399787607,1766677841506,-300.0,0.00013837,2]
[399787608,1766677841517,-300.0,0.00013837,2]
[399787609,1766677841528,-300.0,0.00013837,2]
[399787610,1766677841538,-300.0,0.00013837,2]
[399787611,1766677841549,-300.0,0.00013837,2]
[399787612,1766677841559,-195.0,0.00013837,2]
[399787613,1766677841569,-600.0,0.00013837,2]
[399787614,1766677841580,-600.0,0.00013837,2]
[399787615,1766677841591,-600.0,0.00013837,2]
[399787616,1766677841601,-600.0,0.00013837,2]
[399787617,1766677841612,-600.0,0.00013837,2]
[399787618,1766677841623,-2500.0,0.00013837,2]
[399787619,1766677841636,-2500.0,0.00013837,2]
[399787620,1766677841647,-2500.0,0.00013837,2]
[399787621,1766677841657,-2500.0,0.00013837,2]
[399787622,1766677841668,-1101.07385604,0.00013837,2]
[399787623,1766677841680,-195.0,0.00013837,2]
[399787624,1766677841691,-1113.23603484,0.00013857,2]
[399787625,1766677841701,-846.7,0.00013961,2]
[399787626,1766677841711,-255.0,0.0001397,2]
[399787627,1766677841721,-10610.10242524,0.0001397,2]
[399787628,1766677841733,-420.0,0.00014002,2]
[399787629,1766677841743,-168.53,0.00014007,2]
[399787630,1766677841754,-1680.0,0.00014041,2]
[399787631,1766677841765,-7416.31321443,0.00014089,2]
[399787632,1766677841776,-846.7,0.00014235,2]
[399787633,1766677841786,-10610.10242524,0.00014389,2]
[399787634,1766677841797,-214.20136534,0.00014389,2]
[399787635,1766677841808,-846.7,0.00014509,2]
[399787636,1766677841818,-500.0,0.00014543,2]
[399787637,1766677841833,-7416.31321443,0.00014558,2]
[399787638,1766677841844,-846.7,0.00014783,2]
[399787639,1766677841855,-10610.10242524,0.00014807,2]
[399787640,1766677841866,-151.0,0.00014887,2]
[399787641,1766677841878,-151.0,0.00014887,2]
[399787642,1766677841893,-205.35321334,0.000149,2]
[399787643,1766677841903,-214.20136534,0.00015017,2]
[399787644,1766677841915,-7416.31321443,0.00015026,2]
[399787645,1766677841926,-846.7,0.00015057,2]
[399787646,1766677841937,-387.0,0.00015166,2]
[399787647,1766677841948,-10610.10242524,0.00015226,2]
[399787648,1766677841959,-150.0,0.00015288,2]
[399787649,1766677841969,-278.77144016,0.00015288,2]
[399787650,1766677841980,-161.31844232,0.00015288,2]
[399787651,1766677841991,-297.95782192,0.00015288,2]
[399787652,1766677842001,-208.13382846,0.00015288,2]
[399787653,1766677842011,-401.09949094,0.00015288,2]
[399787654,1766677842021,-150.0,0.00015288,2]
[399787655,1766677842032,-150.0,0.00015288,2]
[399787656,1766677842053,-150.0,0.00015288,2]
[399787657,1766677842074,-150.0,0.00015288,2]
[399787658,1766677842085,-194.3242755,0.00015288,2]
[399787659,1766677842096,-150.0,0.00015288,2]
[399787660,1766677842106,-150.0,0.00015288,2]
[399787661,1766677842117,-150.0,0.00015288,2]
[399787662,1766677842127,-150.0,0.00015288,2]
[399787663,1766677842137,-150.0,0.00015288,2]
[399787664,1766677842148,-278.77144016,0.00015305,2]
[399787665,1766677842158,-161.31844232,0.00015305,2]
[399787666,1766677842168,-297.95782192,0.00015305,2]
[399787667,1766677842180,-208.13382846,0.00015305,2]
[399787668,1766677842191,-401.09949094,0.00015305,2]
[399787669,1766677842201,-194.3242755,0.00015305,2]
[399787670,1766677842216,-150.0,0.00015309,2]
[399787671,1766677842227,-500.0,0.00015314,2]
[399787672,1766677842239,-500.0,0.00015314,2]
[399787673,1766677842250,-500.0,0.00015314,2]
[399787674,1766677842261,-150.0,0.0001532,2]
[399787675,1766677842273,-278.77144016,0.00015322,2]
[399787676,1766677842283,-161.31844232,0.00015322,2]
[399787677,1766677842294,-297.95782192,0.00015322,2]
[399787678,1766677842305,-208.13382846,0.00015322,2]
[399787679,1766677842315,-401.09949094,0.00015322,2]
[399787680,1766677842326,-194.3242755,0.00015322,2]
[399787681,1766677842337,-150.0,0.00015329,2]
[399787682,1766677842348,-150.0,0.0001533,2]
[399787683,1766677842359,-846.7,0.00015331,2]
[399787684,1766677842369,-150.0,0.00015336,2]
[399787685,1766677842380,-278.77144016,0.00015339,2]
[399787686,1766677842391,-161.31844232,0.00015339,2]
[399787687,1766677842401,-297.95782192,0.00015339,2]
[399787688,1766677842411,-208.13382846,0.00015339,2]
[399787689,1766677842426,-401.09949094,0.00015339,2]
[399787690,1766677842436,-194.3242755,0.00015339,2]
[399787691,1766677842446,-150.0,0.00015351,2]
[399787692,1766677842455,-150.0,0.00015351,2]
[399787693,1766677842466,-150.0,0.00015352,2]
[399787694,1766677842476,-278.77144016,0.00015356,2]
[399787695,1766677842486,-161.31844232,0.00015356,2]
[399787696,1766677842497,-297.95782192,0.00015356,2]
[399787697,1766677842507,-208.13382846,0.00015356,2]
[399787698,1766677842518,-401.09949094,0.00015356,2]
[399787699,1766677842528,-194.3242755,0.00015356,2]
[399787700,1766677842539,-587.0,0.00015359,2]
[399787701,1766677842825,-150.0,0.00015371,2]
[399787702,1766677842837,-150.0,0.00015373,2]
[399787703,1766677842848,-278.77144016,0.00015373,2]
[399787704,1766677842859,-161.31844232,0.00015373,2]
[399787705,1766677842869,-297.95782192,0.00015373,2]
[399787706,1766677842880,-208.13382846,0.00015373,2]
[399787707,1766677842895,-401.09949094,0.00015373,2]
[399787708,1766677842906,-194.3242755,0.00015373,2]
[399787709,1766677842916,-150.0,0.00015384,2]
[399787710,1766677842927,-150.0,0.00015385,2]
[399787711,1766677842937,-278.77144016,0.00015391,2]
[399787712,1766677842948,-161.31844232,0.00015391,2]
[399787713,1766677842961,-297.95782192,0.00015391,2]
[399787714,1766677842971,-208.13382846,0.00015391,2]
[399787715,1766677842982,-401.09949094,0.00015391,2]
[399787716,1766677842993,-194.3242755,0.00015391,2]
[399787717,1766677843003,-150.0,0.00015394,2]
[399787718,1766677843014,-278.77144016,0.00015408,2]
[399787720,1766677843024,-161.31844232,0.00015408,2]
[399787722,1766677843034,-297.95782192,0.00015408,2]
[399787723,1766677843044,-208.13382846,0.00015408,2]
[399787725,1766677843055,-401.09949094,0.00015408,2]
[399787726,1766677843065,-194.3242755,0.00015408,2]
[399787729,1766677843083,-150.0,0.00015412,2]
[399787731,1766677843095,-150.0,0.00015413,2]
[399787733,1766677843106,-150.0,0.00015415,2]
[399787734,1766677843117,-150.0,0.00015416,2]
[399787735,1766677843128,-278.77144016,0.00015425,2]
[399787736,1766677843138,-161.31844232,0.00015425,2]
[399787737,1766677843149,-297.95782192,0.00015425,2]
[399787738,1766677843160,-208.13382846,0.00015425,2]
[399787739,1766677843171,-401.09949094,0.00015425,2]
[399787740,1766677843183,-194.3242755,0.00015425,2]
[399787741,1766677843193,-150.0,0.00015429,2]
[399787742,1766677843205,-150.0,0.00015433,2]
[399787743,1766677843215,-150.0,0.00015436,2]
[399787744,1766677843225,-278.77144016,0.00015442,2]
[399787745,1766677843235,-161.31844232,0.00015442,2]
[399787746,1766677843246,-297.95782192,0.00015442,2]
[399787747,1766677843257,-208.13382846,0.00015442,2]
[399787748,1766677843267,-401.09949094,0.00015442,2]
[399787749,1766677843277,-194.3242755,0.00015442,2]
[399787750,1766677843288,-2351.0,0.00015445,2]
[399787751,1766677843299,-150.0,0.00015448,2]
[399787752,1766677843309,-150.0,0.00015453,2]
[399787753,1766677843321,-150.0,0.00015458,2]
[399787754,1766677843331,-278.77144016,0.00015459,2]
[399787755,1766677843342,-161.31844232,0.00015459,2]
[399787756,1766677843353,-297.95782192,0.00015459,2]
[399787758,1766677843364,-208.13382846,0.00015459,2]
[399787759,1766677843374,-401.09949094,0.00015459,2]
[399787761,1766677843385,-194.3242755,0.00015459,2]
[399787763,1766677843397,-278.77144016,0.00015476,2]
[399787764,1766677843407,-161.31844232,0.00015476,2]
[399787765,1766677843418,-297.95782192,0.00015476,2]
[399787766,1766677843434,-208.13382846,0.00015476,2]
[399787767,1766677843444,-401.09949094,0.00015476,2]
[399787768,1766677843455,-150.0,0.00015476,2]
[399787769,1766677843466,-194.3242755,0.00015476,2]
[399787770,1766677843477,-150.0,0.00015479,2]
[399787771,1766677843488,-150.0,0.0001548,2]
[399787772,1766677843499,-150.0,0.00015482,2]
[399787773,1766677843509,-278.77144016,0.00015494,2]
[399787774,1766677843520,-161.31844232,0.00015494,2]
[399787775,1766677843531,-297.95782192,0.00015494,2]
[399787776,1766677843542,-208.13382846,0.00015494,2]
[399787777,1766677843553,-401.09949094,0.00015494,2]
[399787778,1766677843564,-194.3242755,0.00015494,2]
[399787779,1766677843574,-150.0,0.00015495,2]
[399787780,1766677843585,-150.0,0.000155,2]
[399787781,1766677843596,-150.0,0.000155,2]
[399787782,1766677843607,-278.77144016,0.00015511,2]
[399787783,1766677843618,-161.31844232,0.00015511,2]
[399787784,1766677843628,-297.95782192,0.00015511,2]
[399787785,1766677843640,-208.13382846,0.00015511,2]
[399787786,1766677843651,-401.09949094,0.00015511,2]
[399787787,1766677843661,-194.3242755,0.00015511,2]
[399787788,1766677843672,-150.0,0.00015512,2]
[399787789,1766677843682,-150.0,0.00015521,2]
[399787790,1766677843694,-278.77144016,0.00015528,2]
[399787791,1766677843704,-161.31844232,0.00015528,2]
[399787792,1766677843714,-297.95782192,0.00015528,2]
[399787793,1766677843724,-208.13382846,0.00015528,2]
[399787794,1766677843735,-401.09949094,0.00015528,2]
[399787795,1766677843747,-194.3242755,0.00015528,2]
[399787796,1766677843757,-150.0,0.0001553,2]
[399787797,1766677843768,-150.0,0.00015536,2]
[399787798,1766677843779,-150.0,0.00015539,2]
[399787799,1766677843790,-150.0,0.00015542,2]
[399787800,1766677843801,-150.0,0.00015544,2]
[399787801,1766677843811,-278.77144016,0.00015545,2]
[399787802,1766677843822,-161.31844232,0.00015545,2]
[399787803,1766677843833,-297.95782192,0.00015545,2]
[399787804,1766677843843,-208.13382846,0.00015545,2]
[399787805,1766677843853,-401.09949094,0.00015545,2]
[399787806,1766677843863,-194.3242755,0.00015545,2]
[399787807,1766677843875,-278.77144016,0.00015562,2]
[399787808,1766677843889,-161.31844232,0.00015562,2]
[399787809,1766677843901,-297.95782192,0.00015562,2]
[399787810,1766677843911,-208.13382846,0.00015562,2]
[399787811,1766677843922,-401.09949094,0.00015562,2]
[399787812,1766677843933,-194.3242755,0.00015562,2]
[399787813,1766677843944,-150.0,0.00015564,2]
[399787814,1766677843955,-150.0,0.00015571,2]
[399787815,1766677843965,-150.0,0.00015571,2]
[399787816,1766677843976,-150.0,0.00015576,2]
[399787817,1766677843987,-150.0,0.00015578,2]
[399787818,1766677843997,-150.0,0.00015579,2]
[399787819,1766677844008,-278.77144016,0.00015579,2]
[399787820,1766677844018,-161.31844232,0.00015579,2]
[399787821,1766677844028,-297.95782192,0.00015579,2]
[399787822,1766677844039,-208.13382846,0.00015579,2]
[399787823,1766677844050,-401.09949094,0.00015579,2]